bitfinex/quotes_SOLUSD_20240906
["timestamp","ask_amount","ask_price","bid_price","bid_amount"]
[1725656421049,50.0,121.2,121.07,0.07988464]
[1725656421252,2.06462487,121.11,121.07,0.07988464]
[1725656421553,50.0,121.17,121.07,0.07988464]
[1725656421751,8.254,121.16,121.07,0.07988464]
[1725656421940,2.06469494,121.17,121.09,20.6457]
[1725656422142,2.06463876,121.15,121.09,20.1457]
[1725656422334,2.06463876,121.15,121.1,8.2572]
[1725656422654,2.06463876,121.15,121.07,0.07988464]
[1725656423035,8.2564,121.12,121.07,0.07988464]
[1725656423355,8.254,121.16,121.07,20.72788464]
[1725656423554,10.0,121.21,121.07,20.72788464]
[1725656423555,50.0,121.19,121.07,20.72788464]
[1725656423867,2.06464272,121.22,121.16,8.2532]
[1725656424162,8.2489,121.23,121.16,8.2532]
[1725656424351,8.2512,121.2,121.13,8.2553]
[1725656424527,8.2458,121.28,121.18,8.2515]
[1725656424732,8.2458,121.28,121.08,43.0168]
[1725656424733,8.2444,121.3,121.1,52.80328058]
[1725656424932,50.0,121.28,121.2,20.6256]
[1725656425248,50.0,121.28,121.08,43.0168]
[1725656425249,50.0,121.25,121.19,8.251]
[1725656425432,2.06314531,121.24,121.21,8.2499]
[1725656425633,12.9887,121.31,121.23,8.2485]
[1725656425634,2.06269516,121.28,121.23,8.2485]
[1725656426053,2.06244278,121.32,121.22,20.6223]
[1725656426262,52.06249286,121.31,121.18,20.63]
[1725656426754,2.06249286,121.31,121.23,8.2486]
[1725656427056,2.06249286,121.31,121.21,20.6243]
[1725656427266,8.2463,121.27,121.21,20.6243]
[1725656427561,2.06249286,121.31,121.24,20.6187]
[1725656427742,12.9887,121.37,121.25,45.0]
[1725656427945,2.0614647,121.36,121.25,45.0]
[1725656428148,2.0614647,121.36,121.32,8.2426]
[1725656428346,8.2371,121.41,121.3,20.609]
[1725656428347,50.0,121.41,121.3,28.8525]
[1725656428548,50.0,121.39,121.3,28.8525]
[1725656428836,2.06111303,121.4,121.24,12.9519]
[1725656428837,50.0,121.36,121.26,20.6161]
[1725656429164,41.1793,121.43,121.2,30.0649]
[1725656429165,50.0,121.3,121.2,30.0649]
[1725656429341,8.249,121.23,121.17,8.2527]
[1725656429656,2.06286475,121.22,121.17,20.6311]
[1725656429864,2.06286475,121.22,121.17,28.8838]
[1725656430359,2.06286475,121.22,121.11,12.9519]
[1725656430530,3.02776983,121.32,121.11,12.9519]
[1725656430531,70.6205,121.24,121.11,12.9519]
[1725656430960,23.63536983,121.32,121.11,54.10469603]
[1725656431176,50.0,121.55,121.33,12.9519]
[1725656431458,0.7910386,121.48,121.34,1.64770876]
[1725656431668,0.7910386,121.48,121.36,41.15279603]
[1725656431836,0.7910386,121.48,121.34,41.15279603]
[1725656432237,8.2302,121.51,121.37,41.15279603]
[1725656432447,0.7910386,121.5,121.38,45.0]
[1725656432645,8.2311,121.49,121.42,8.2356]
[1725656432846,8.2346,121.44,121.38,45.0]
[1725656433056,8.2342,121.45,121.38,45.0]
[1725656433379,0.7910386,121.48,121.38,53.2384]
[1725656433665,9.0233386,121.48,121.39,8.2376]
[1725656433833,9.0233386,121.48,121.32,71.21769603]
[1725656433834,50.7910386,121.48,121.33,33.5562]
[1725656434039,8.2357,121.43,121.36,8.2397]
[1725656434253,0.7910386,121.47,121.33,12.9519]
[1725656434463,9.0240386,121.47,121.34,1.64778655]
[1725656434662,8.2332,121.46,121.35,20.6004]
[1725656434869,0.7910386,121.45,121.36,8.2396]
[1725656435048,50.0,121.5,121.35,20.6004]
[1725656435049,0.7910386,121.49,121.38,8.2384]
[1725656435250,0.7910386,121.49,121.35,20.6004]
[1725656435251,8.2339,121.45,121.35,20.6004]
[1725656435469,0.7910386,121.48,121.35,20.6004]
[1725656435765,8.2342,121.45,121.36,53.2397]
[1725656435949,0.7910386,121.44,121.36,53.2397]
[1725656436144,65.9325,121.53,121.36,45.0]
[1725656436145,0.7910386,121.43,121.36,45.0]
[1725656436353,8.235,121.44,121.36,53.2397]
[1725656436749,8.2334,121.46,121.36,45.0]
[1725656436971,0.7910386,121.57,121.45,8.2333]
[1725656437139,0.7910386,121.57,121.38,12.9519]
[1725656437140,50.0,121.54,121.38,12.9519]
[1725656437340,50.0,121.52,121.38,12.9519]
[1725656437536,0.7910386,121.51,121.39,8.2377]
[1725656437766,0.7910386,121.51,121.38,33.5476]
[1725656438075,8.2335,121.46,121.38,41.7858]
[1725656438249,0.7910386,121.45,121.38,12.9519]
[1725656438456,50.7910386,121.45,121.32,13.2205]
[1725656438647,8.2386,121.38,121.32,13.2205]
[1725656438852,50.7910386,121.45,121.33,8.2419]
[1725656438853,8.2378,121.4,121.33,8.2419]
[1725656439049,0.7910386,121.44,121.34,8.2412]
[1725656439250,0.7910386,121.44,121.32,33.8265]
[1725656439251,8.2368,121.41,121.33,8.2415]
[1725656439557,9.0288386,121.4,121.32,33.8265]
[1725656439950,0.7910386,121.44,121.32,33.8265]
[1725656440142,0.7910386,121.43,121.35,20.6005]
[1725656440566,0.7910386,121.43,121.32,13.2205]
[1725656440744,0.7910386,121.43,121.33,28.8452]
[1725656440951,8.2371,121.41,121.35,8.2405]
[1725656441150,20.5853,121.45,121.34,45.0]
[1725656441372,9.0265386,121.43,121.36,8.2399]
[1725656441676,8.2366,121.41,121.37,45.0]
[1725656441853,0.7910386,121.43,121.34,45.0]
[1725656442052,0.7910386,121.43,121.33,28.8451]
[1725656442292,0.7910386,121.43,121.33,20.6033]
[1725656442451,8.2399,121.36,121.32,13.2205]
[1725656442652,20.5897,121.42,121.32,13.2205]
[1725656442874,0.7910386,121.41,121.32,13.2205]
[1725656443177,0.7910386,121.44,121.32,33.826]
[1725656443377,0.7910386,121.44,121.32,13.2205]
[1725656443587,0.7910386,121.43,121.32,13.2205]
[1725656444050,0.7910386,121.43,121.33,20.6035]
[1725656444261,0.7910386,121.43,121.32,14.86870593]
[1725656444262,0.7910386,121.43,121.32,13.2205]
[1725656444962,0.7910386,121.43,121.35,41.15279603]
[1725656445170,53.9404,121.58,121.32,23.2205]
[1725656445171,8.2304,121.51,121.32,23.2205]
[1725656445465,20.5719,121.53,121.36,20.5987]
[1725656445651,70.5719,121.53,121.36,20.5987]
[1725656445850,50.0,121.54,121.4,20.5922]
[1725656446075,84.5038,121.58,121.41,45.0]
[1725656446076,50.0,121.56,121.41,45.0]
[1725656446247,8.286,121.65,121.48,8.2315]
[1725656446248,8.2258,121.57,121.48,8.2315]
[1725656446453,20.5549,121.63,121.44,20.5858]
[1725656446454,8.2218,121.63,121.52,20.5719]
[1725656446749,4.02970603,121.88,121.49,46.6452476]
[1725656446750,50.0,121.64,121.49,45.0]
[1725656446953,50.0,121.65,121.5,20.5754]
[1725656447177,8.2233,121.61,121.51,45.0]
[1725656447478,50.0,121.66,121.51,53.2295]
[1725656447656,8.2259,121.57,121.51,45.0]
[1725656447856,8.2281,121.54,121.51,45.0]
[1725656448176,50.0,121.59,121.42,12.3239]
[1725656448481,41.1153,121.61,121.42,13.97057013]
[1725656448482,8.2293,121.52,121.42,13.97057013]
[1725656448702,70.5638,121.58,121.42,12.3239]
[1725656448917,50.0,121.6,121.43,1.64645031]
[1725656449205,50.0,121.6,121.42,32.9132]
[1725656449206,50.0,121.57,121.42,34.55953719]
[1725656449376,40.5666,121.56,121.42,32.9132]
[1725656449716,8.2281,121.54,121.46,8.2328]
[1725656449876,50.0,121.59,121.47,45.0]
[1725656450071,20.5662,121.56,121.42,22.20558437]
[1725656450287,20.5662,121.56,121.42,12.3239]
[1725656450492,8.2286,121.53,121.45,8.2336]
[1725656450696,8.228,121.54,121.46,9.87909981]
[1725656450901,8.2286,121.53,121.45,8.2336]
[1725656451196,20.5658,121.57,121.44,22.23255223]
[1725656451400,20.5658,121.57,121.44,20.5862]
[1725656451595,8.2282,121.54,121.45,45.0]
[1725656451904,20.0,121.58,121.45,53.2332]
[1725656452106,20.0,121.59,121.45,53.2332]
[1725656452277,20.0,121.59,121.45,45.0]
[1725656452486,8.2286,121.53,121.46,9.87848627]
[1725656452677,8.2286,121.53,121.47,45.0]
[1725656452898,8.2312,121.49,121.44,20.5862]
[1725656453079,8.2303,121.51,121.44,20.5862]
[1725656453286,8.2305,121.5,121.44,20.5862]
[1725656453490,8.2305,121.5,121.44,22.23278675]
[1725656453787,8.2268,121.56,121.49,8.2309]
[1725656453990,8.2257,121.57,121.5,9.87571433]
[1725656454600,8.2235,121.61,121.54,8.2276]
[1725656454777,102.7438,121.67,121.55,46.64501163]
[1725656454977,20.5484,121.67,121.55,58.96891163]
[1725656455399,8.2217,121.63,121.57,20.5638]
[1725656455582,8.2209,121.65,121.58,46.64439366]
[1725656455987,8.2216,121.64,121.58,54.86939366]
[1725656456209,50.0,121.72,121.6,8.2233]
[1725656456210,8.2202,121.66,121.6,8.2233]
[1725656456502,20.5391,121.72,121.61,46.64417474]
[1725656456503,8.2193,121.67,121.61,46.64417474]
[1725656456708,8.2193,121.67,121.61,1.64417474]
[1725656457008,8.2197,121.66,121.62,45.0]
[1725656457300,8.2206,121.65,121.58,46.64404039]
[1725656457504,20.5391,121.72,121.6,28.7816]
[1725656457696,20.5391,121.72,121.61,45.0]
[1725656458093,8.2198,121.66,121.61,45.0]
[1725656458290,8.2188,121.68,121.61,46.64396736]
[1725656458484,8.2155,121.73,121.65,52.5517]
[1725656458682,8.2157,121.72,121.67,12.9879]
[1725656459097,50.0,121.85,121.71,20.5402]
[1725656459306,10.0,121.9,121.72,46.64240729]
[1725656459307,50.0,121.9,121.72,46.64240729]
[1725656459606,32.8066,121.95,121.72,46.64240729]
[1725656459607,50.0,121.92,121.72,46.64240729]
[1725656459844,50.0,121.87,121.73,45.0]
[1725656459995,8.2129,121.76,121.73,45.0]
[1725656460313,41.0371,121.85,121.67,12.9879]
[1725656460615,12.2738,121.82,121.65,32.0012]
[1725656460822,8.2143,121.74,121.68,8.2181]
[1725656460993,41.0371,121.85,121.63,82.0012]
[1725656461199,41.0371,121.85,121.62,22.9879]
[1725656461200,8.2203,121.65,121.62,12.9879]
[1725656461509,20.5316,121.77,121.63,1.64362056]
[1725656461825,4.02970603,122.12,121.63,1.64362056]
[1725656461826,50.0,121.86,121.64,32.0012]
[1725656462309,50.0,121.86,121.69,54.14069603]
[1725656462495,50.0,121.86,121.71,41.15279603]
[1725656462698,50.0,121.86,121.73,41.15279603]
[1725656463015,10.0,121.89,121.77,41.15279603]
[1725656463314,8.05941206,122.33,121.76,44.9891]
[1725656463315,30.3968,122.11,121.87,41.15279603]
[1725656463488,30.3968,122.11,121.93,20.5027]
[1725656463695,50.0,122.1,121.93,20.5027]
[1725656463890,30.3968,122.11,121.93,28.7039]
[1725656464109,50.0,122.12,121.97,20.4968]
[1725656464110,20.4721,122.12,121.97,20.4968]
[1725656464304,0.7444647,122.14,121.91,82.16519603]
[1725656464305,8.1901,122.1,122.01,20.4901]
[1725656464534,8.1915,122.08,122.02,45.0]
[1725656464719,0.7444647,122.14,122.02,45.0]
[1725656464924,40.9449,122.12,121.99,12.2072]
[1725656465222,40.9449,122.12,121.93,12.2072]
[1725656465402,40.9449,122.12,121.86,61.5358]
[1725656465403,8.2003,121.95,121.86,61.5358]
[1725656465605,12.816,122.11,121.88,8.2044]
[1725656465606,20.4887,122.02,121.88,8.2044]
[1725656465821,62.816,122.11,121.9,8.2029]
[1725656466019,62.816,122.11,121.86,43.3299]
[1725656466020,50.0,122.06,121.86,43.3299]
[1725656466320,40.9608,122.07,121.86,43.3299]
[1725656466321,8.1993,121.97,121.87,1.64025772]
[1725656466499,8.1976,121.99,121.87,1.64025772]
[1725656466819,40.9608,122.07,121.86,43.3299]
[1725656466820,50.0,122.02,121.86,43.3299]
[1725656467000,8.2041,121.89,121.86,12.2072]
[1725656467348,20.4953,121.98,121.86,12.2072]
[1725656467530,8.2076,121.84,121.74,20.5351]
[1725656467713,1.849665,121.97,121.76,10.0]
[1725656467908,20.4942,121.99,121.78,20.5274]
[1725656467909,41.0023,121.95,121.78,20.5274]
[1725656468117,8.2023,121.92,121.82,8.2083]
[1725656468421,20.0,121.98,121.85,8.2062]
[1725656468628,40.9819,122.01,121.86,1.64030213]
[1725656468810,8.1986,121.98,121.87,12.2072]
[1725656469025,8.1978,121.99,121.9,8.2031]
[1725656469314,58.286,122.1,121.88,20.5106]
[1725656469315,8.1951,122.03,121.92,20.5036]
[1725656469517,21.2132647,122.14,121.93,86.15279603]
[1725656469735,8.1965,122.01,121.93,46.63912346]
[1725656470043,40.9577,122.08,121.87,32.7197]
[1725656470208,20.4887,122.02,121.87,32.7197]
[1725656470526,40.9577,122.08,121.87,12.2072]
[1725656470527,20.4956,121.98,121.87,12.2072]
[1725656470705,20.0,121.97,121.79,1.64072766]
[1725656470914,20.5025,121.94,121.8,12.2072]
[1725656471115,40.9963,121.97,121.81,20.5237]
[1725656471116,8.2031,121.91,121.81,20.5237]
[1725656471307,50.0,122.02,121.8,12.2072]
[1725656471308,72.816,122.11,121.89,8.2037]
[1725656471503,72.816,122.11,121.82,51.15279603]
[1725656471504,20.4869,122.03,121.86,41.15279603]
[1725656471815,30.3968,122.12,121.91,41.15279603]
[1725656472004,8.1949,122.03,121.96,28.6959]
[1725656472329,8.1981,121.98,121.92,20.5046]
[1725656472535,30.3968,122.12,121.92,22.14405146]
[1725656472828,30.3968,122.12,121.95,8.1998]
[1725656472829,20.477,122.09,121.95,8.1998]
[1725656473007,20.477,122.09,121.93,45.0]
[1725656473008,8.198,121.98,121.96,45.0]
[1725656473345,8.1997,121.96,121.9,43.3299]
[1725656473502,40.9699,122.05,121.9,43.3299]
[1725656473503,8.2018,121.93,121.9,12.2072]
[1725656473706,8.2021,121.92,121.86,1.64030798]
[1725656473929,20.4993,121.96,121.84,12.2072]
[1725656474221,8.2042,121.89,121.84,13.84824073]
[1725656474426,20.5047,121.93,121.84,12.2072]
[1725656474603,20.4975,121.97,121.87,8.2049]
[1725656474807,20.4975,121.97,121.84,12.2072]
[1725656474808,20.4912,122.01,121.88,1.64042575]
[1725656475109,103.7859,122.05,121.88,1.64042506]
[1725656475110,8.1993,121.97,121.88,1.64042506]
[1725656475315,8.1993,121.97,121.89,20.5096]
[1725656475516,50.0,122.09,121.84,53.35999603]
[1725656475517,14.3416,122.03,121.92,14.3534]
[1725656475725,14.3448,122.0,121.87,1.64025852]
[1725656476024,14.34,122.04,121.88,1.63977791]
[1725656476205,14.34,122.04,121.91,20.0959]
[1725656476402,28.6783,122.05,121.92,46.63957202]
[1725656476630,5.7372,122.01,121.94,14.351]
[1725656476839,14.3421,122.02,121.92,45.0]
[1725656477005,14.3421,122.02,121.91,46.63979957]
[1725656477315,14.3376,122.06,121.93,14.3519]
[1725656477629,5.7372,122.01,121.95,5.7397]
[1725656477829,42.9948,122.11,121.98,5.7381]
[1725656478031,42.9948,122.11,121.98,5.7382]
[1725656478206,42.9948,122.11,121.99,45.0]
[1725656478607,5.7363,122.03,121.98,45.0]
[1725656478805,5.7358,122.04,121.98,50.7384]
[1725656479231,5.7358,122.04,121.99,1.63876555]
[1725656479820,28.6632,122.11,121.99,7.37656555]
[1725656480029,28.6632,122.11,121.95,12.2072]
[1725656480231,28.6739,122.07,121.95,12.2072]
[1725656480533,5.74,121.95,121.89,33.96950312]
[1725656480734,82.384,122.05,121.89,12.2303]
[1725656480935,82.384,122.05,121.81,58.8682]
[1725656480936,14.3514,121.94,121.83,12.2303]
[1725656481239,14.3514,121.94,121.72,12.2303]
[1725656481240,14.3586,121.88,121.72,12.2303]
[1725656481413,41.10470162,121.98,121.72,12.2303]
[1725656481414,14.354,121.92,121.76,41.15279603]
[1725656481617,20.0,121.91,121.76,41.15279603]
[1725656481826,20.0,121.91,121.75,78.7456]
[1725656481827,20.0,121.91,121.75,14.3732]
[1725656482029,20.0,121.91,121.75,16.01502561]
[1725656482241,20.0,121.91,121.72,12.2303]
[1725656482242,5.748,121.78,121.72,12.2303]
[1725656482538,5.748,121.78,121.65,50.0]
[1725656482539,28.761,121.7,121.45,288.97982333]
[1725656482749,32.384,121.74,121.16,30.1369]
[1725656482750,10.0,121.4,121.16,30.1369]
[1725656483044,24.4018,121.52,121.31,50.0]
[1725656483211,24.4018,121.52,121.34,50.0]
[1725656483212,10.0,121.52,121.34,50.0]
[1725656483536,5.7619,121.49,121.35,12.91920879]
[1725656483737,10.0,121.52,121.45,0.13465111]
[1725656483910,10.0,121.52,121.35,1.64611475]
[1725656484114,10.0,121.5,121.35,1.64611475]
[1725656484341,10.0,121.48,121.37,5.7671]
[1725656484539,10.0,121.54,121.36,1.64696579]
[1725656484871,10.0,121.54,121.32,78.8477]
[1725656484872,10.0,121.56,121.38,51.646339]
[1725656485012,10.0,121.58,121.38,1.646339]
[1725656485344,20.0,121.64,121.38,1.646339]
[1725656485345,10.0,121.64,121.45,50.0]
[1725656485635,10.0,121.64,121.38,42.79913503]
[1725656485636,10.0,121.64,121.46,1.64430704]
[1725656485839,10.0,121.58,121.5,5.761]
[1725656486053,10.0,121.56,121.46,5.7628]
[1725656486265,10.0,121.56,121.37,59.7416]
[1725656486464,10.0,121.54,121.46,14.4076]
[1725656486649,1.849665,121.55,121.46,14.4076]
[1725656486845,1.849665,121.55,121.5,5.7611]
[1725656487043,10.0,121.54,121.5,5.7611]
[1725656487244,10.0,121.51,121.41,14.4128]
[1725656487473,10.0,121.51,121.43,5.7643]
[1725656487673,10.0,121.51,121.41,14.4128]
[1725656487674,10.0,121.49,121.41,14.4128]
[1725656487849,10.0,121.49,121.43,5.7644]
[1725656488055,50.0,121.57,121.41,14.4128]
[1725656488056,8.5,121.47,121.41,14.4128]
[1725656488258,1.849665,121.49,121.44,14.4093]
[1725656488446,8.5,121.5,121.47,5.7625]
[1725656488647,8.5,121.5,121.45,5.7633]
[1725656488846,8.5,121.5,121.46,5.763]
[1725656489143,8.5,121.54,121.47,14.4059]
[1725656489456,8.5,121.56,121.51,14.4016]
[1725656489662,1.64245211,121.59,121.39,51.5]
[1725656489663,8.5,121.59,121.39,51.5]
[1725656489897,10.0,121.71,121.39,51.5]
[1725656489898,8.5,121.58,121.54,14.3976]
[1725656490083,8.5,121.57,121.5,20.164]
[1725656490368,8.5,121.57,121.51,45.0]
[1725656490561,8.5,121.52,121.46,14.4077]
[1725656490764,8.5,121.47,121.33,12.1024]
[1725656491065,1.64245211,121.51,121.42,14.4125]
[1725656491066,10.349665,121.51,121.42,14.4125]
[1725656491276,8.5,121.49,121.42,14.4125]
[1725656491451,8.5,121.49,121.38,1.64670881]
[1725656491452,14.2628,121.47,121.38,1.64670881]
[1725656491643,8.5,121.47,121.38,1.64670881]
[1725656491847,8.5,121.47,121.4,14.4142]
[1725656492144,8.5,121.49,121.43,14.4104]
[1725656492346,10.349665,121.51,121.46,14.4071]
[1725656492546,8.5,121.48,121.38,1.64670286]
[1725656492853,1.849665,121.51,121.41,14.4128]
[1725656492854,8.5,121.5,121.41,14.4128]
[1725656493084,1.849665,121.51,121.44,14.4095]
[1725656493254,14.2614,121.5,121.44,14.4095]
[1725656493562,14.2614,121.5,121.4,14.4148]
[1725656493563,8.5,121.48,121.4,14.4148]
[1725656493770,8.5,121.46,121.4,20.1807]
[1725656493982,10.349665,121.5,121.4,14.4148]
[1725656494270,8.5,121.44,121.36,14.4195]
[1725656494465,21.849665,121.49,121.35,5.7683]
[1725656494466,8.5,121.42,121.35,5.7683]
[1725656494849,8.5,121.39,121.35,5.7683]
[1725656495077,8.5,121.42,121.36,14.4197]
[1725656495371,8.5,121.37,121.32,20.1939]
[1725656495749,8.5,121.37,121.23,12.1024]
[1725656495750,8.5,121.35,121.3,5.7705]
[1725656495955,8.5,121.4,121.3,1.64836927]
[1725656496178,8.5,121.38,121.26,28.8623]
[1725656496475,14.2682,121.36,121.29,5.771]
[1725656496974,8.5,121.37,121.34,5.7687]
[1725656497163,8.5,121.37,121.32,5.7694]
[1725656497359,1.64245211,121.45,121.26,28.8628]
[1725656497360,8.5,121.35,121.26,14.4313]
[1725656497577,8.5,121.33,121.26,14.4313]
[1725656497877,8.5,121.3,121.17,1.64884256]
[1725656498078,14.2719,121.28,121.21,14.4376]
[1725656498250,8.5,121.28,121.17,14.4423]
[1725656498452,8.5,121.23,121.17,14.4423]
[1725656498672,8.5,121.21,121.12,14.4475]
[1725656498851,8.5,121.28,121.13,1.65036665]
[1725656499056,8.5,121.34,121.17,42.2311797]
[1725656499272,8.5,121.34,121.11,28.8988]
[1725656499273,8.5,121.38,121.2,42.2311797]
[1725656499472,31.2583,121.49,121.12,32.68381626]
[1725656499473,8.5,121.4,121.35,5.7683]
[1725656499677,8.5,121.38,121.32,20.1931]
[1725656499853,8.5,121.4,121.32,14.4235]
[1725656500173,8.5,121.37,121.32,20.1929]
[1725656500381,8.5,121.39,121.33,50.7692]
[1725656500547,8.5,121.39,121.33,45.0]
[1725656500752,8.5,121.43,121.34,1.64803461]
[1725656500981,8.5,121.43,121.35,1.64743882]
[1725656501186,8.5,121.45,121.38,14.4164]
[1725656501479,1.64245211,121.57,121.39,46.64700624]
[1725656501656,14.3939,121.58,121.39,46.64700624]
[1725656501657,8.5,121.52,121.46,5.763]
[1725656501853,8.5,121.54,121.49,5.7615]
[1725656502057,1.849665,121.56,121.47,45.0]
[1725656502058,1.849665,121.56,121.5,61.04805659]
[1725656502275,8.5,121.62,121.58,5.757]
[1725656502459,5.7544,121.65,121.6,14.3906]
[1725656502460,8.5,121.65,121.6,14.3906]
[1725656502778,10.0,121.76,121.6,14.3906]
[1725656502779,8.5,121.66,121.61,45.0]
[1725656503073,8.5,121.64,121.61,45.0]
[1725656503276,8.5,121.66,121.61,45.0]
[1725656503495,8.5,121.62,121.52,14.4005]
[1725656503653,8.5,121.59,121.53,50.7595]
[1725656503978,8.5,121.61,121.53,45.0]
[1725656504182,3.49211711,121.65,121.53,45.0]
[1725656504183,8.5,121.62,121.53,45.0]
[1725656504376,8.5,121.58,121.53,45.0]
[1725656504558,10.349665,121.62,121.54,5.7592]
[1725656504758,10.349665,121.62,121.56,5.7583]
[1725656505077,14.2559,121.62,121.57,45.0]
[1725656505387,14.2559,121.62,121.46,28.8154]
[1725656505388,10.0,121.16,121.15,24.79]
[1725656505555,10.0,121.16,120.73,0.08073519]
[1725656505556,8.71433523,121.15,121.02,92.22573003]
[1725656505755,8.71433523,121.23,121.03,0.48607397]
[1725656505951,5.7752,121.21,121.06,1.28566477]
[1725656506178,8.71433523,121.25,121.02,92.22573003]
[1725656506179,8.71433523,121.25,121.1,1.28566477]
[1725656506383,8.71433523,121.3,121.15,1.28566477]
[1725656506562,8.71433523,121.3,121.16,0.48772127]
[1725656506757,8.71433523,121.31,121.17,1.64905591]
[1725656507071,5.7723,121.27,121.17,1.64905591]
[1725656507278,8.71433523,121.25,121.17,1.64905591]
[1725656507475,5.7739,121.24,121.17,1.64905591]
[1725656507670,8.71433523,121.27,121.12,1.64905591]
[1725656507671,5.7735,121.25,121.12,1.64905591]
[1725656507857,5.7724,121.27,121.18,1.64952856]
[1725656508058,8.71433523,121.29,121.12,51.28566477]
[1725656508059,5.7728,121.26,121.19,1.64831466]
[1725656508358,8.71433523,121.37,121.19,2.93397943]
[1725656508681,14.4186,121.38,121.19,51.64831466]
[1725656508858,8.71433523,121.36,121.19,16.06691466]
[1725656509181,5.7704,121.31,121.19,51.64831466]
[1725656509383,24.98260023,121.38,121.21,42.2311797]
[1725656509565,23.13293523,121.38,121.22,66.6479697]
[1725656509891,5.7695,121.33,121.23,45.0]
[1725656510084,5.7695,121.33,121.22,1.6479697]
[1725656510085,5.7723,121.27,121.22,1.6479697]
[1725656510271,5.7742,121.23,121.2,1.64920083]
[1725656510477,8.71433523,121.27,121.1,42.2311797]
[1725656510784,14.4293,121.29,121.13,1.64971668]
[1725656510785,5.7757,121.2,121.13,1.64971668]
[1725656510957,14.4293,121.29,121.14,50.0]
[1725656511158,8.71433523,121.3,121.15,1.64898256]
[1725656511385,28.8485,121.33,121.15,1.64898256]
[1725656511386,14.4326,121.26,121.15,1.64898256]
[1725656511570,8.71433523,121.24,121.16,1.6493488]
[1725656511780,5.7754,121.21,121.16,1.6493488]
[1725656512363,5.7745,121.23,121.16,1.6493488]
[1725656512560,5.7745,121.23,121.11,63.0335]
[1725656512561,23.15063523,121.23,121.11,14.68305625]
[1725656512760,5.778,121.15,121.11,13.0335]
[1725656512958,5.7822,121.06,121.04,1.65057342]
[1725656513160,5.7822,121.06,121.02,92.22573003]
[1725656513161,8.71433523,121.15,121.02,92.22573003]
[1725656513382,5.7795,121.12,121.02,93.87700019]
[1725656513568,8.71433523,121.15,121.02,93.87700019]
[1725656513767,8.71433523,121.13,121.02,93.87698422]
[1725656513985,5.7809,121.09,121.02,92.22573003]
[1725656514187,5.78,121.11,121.02,92.22573003]
[1725656514387,5.7806,121.1,121.02,93.87705469]
[1725656514562,8.71433523,121.13,121.02,99.66105469]
[1725656514563,5.781,121.09,121.02,99.66105469]
[1725656514762,5.7802,121.11,121.03,5.7835]
[1725656514981,8.71433523,121.21,121.07,42.2311797]
[1725656515300,8.71433523,121.29,121.13,42.2311797]
[1725656515464,8.71433523,121.29,121.14,1.64909805]
[1725656515664,2.06137257,121.34,121.14,1.64909805]
[1725656515665,8.71433523,121.27,121.18,5.7762]
[1725656515882,14.48673523,121.27,121.18,1.649202]
[1725656516180,14.48673523,121.27,121.19,1.64920532]
[1725656516383,14.48333523,121.34,121.26,5.7724]
[1725656516593,14.48333523,121.34,121.27,52.42033914]
[1725656516759,5.769,121.34,121.27,45.0]
[1725656516962,8.71433523,121.29,121.24,14.4338]
[1725656517158,8.71433523,121.29,121.25,45.0]
[1725656517159,5.7715,121.29,121.25,45.0]
[1725656517401,8.71433523,121.37,121.28,14.429]
[1725656517596,8.71433523,121.37,121.29,50.7711]
[1725656517765,14.4126,121.43,121.33,5.7691]
[1725656517766,8.71433523,121.39,121.33,5.7691]